[Event "Masterklassen 2025"]
[Site "Uppsala, Sweden"]
[Date "2025.07.06"]
[Round "9.14"]
[White "Ostensson, Julia"]
[Black "Lind, Jan-Olov"]
[Result "1/2-1/2"]
[TimeControl "90 min for 40 move + 30 min with an increment of 30 sec starting move 1"]
[WhiteFideId "1747703"]
[BlackFideId "1701193"]
[WhiteElo "2005"]
[BlackElo "2057"]

1. d4 {[%clk 01:30:57]} {[%emt 00:00:02]} d5 {[%clk 01:27:54]} {[%emt
00:03:07]} 2. c4 {[%clk 01:31:20]} {[%emt 00:00:06]} c6 {[%clk 01:28:16]}
{[%emt 00:00:09]} 3. Nf3 {[%clk 01:31:29]} {[%emt 00:00:21]} Nf6 {[%clk
01:28:33]} {[%emt 00:00:13]} 4. Nc3 {[%clk 01:31:39]} {[%emt 00:00:21]} g6
{[%clk 01:28:34]} {[%emt 00:00:28]} 5. g3 {[%clk 01:22:27]} {[%emt 00:09:41]}
Bg7 {[%clk 01:27:02]} {[%emt 00:02:02]} 6. Bg2 {[%clk 01:21:35]} {[%emt
00:01:23]} O-O {[%clk 01:25:31]} {[%emt 00:02:00]} 7. cxd5 {[%clk 01:20:30]}
{[%emt 00:01:36]} cxd5 {[%clk 01:25:22]} {[%emt 00:00:39]} 8. O-O {[%clk
01:20:54]} {[%emt 00:00:06]} Nc6 {[%clk 01:21:00]} {[%emt 00:04:51]} 9. Bf4
{[%clk 01:17:41]} {[%emt 00:03:43]} Nh5 {[%clk 01:02:38]} {[%emt 00:18:53]} 10.
Ne5 {[%clk 00:57:33]} {[%emt 00:20:37]} Nxf4 {[%clk 00:59:21]} {[%emt
00:03:47]} 11. gxf4 {[%clk 00:55:09]} {[%emt 00:02:54]} e6 {[%clk 00:57:16]}
{[%emt 00:02:36]} 12. e3 {[%clk 00:54:23]} {[%emt 00:01:16]} g5 {[%clk
00:50:40]} {[%emt 00:07:05]} 13. Nd3 {[%clk 00:49:22]} {[%emt 00:05:31]} b6
{[%clk 00:39:10]} {[%emt 00:12:01]} 14. Rc1 {[%clk 00:48:44]} {[%emt 00:01:09]}
Bb7 {[%clk 00:38:24]} {[%emt 00:01:15]} 15. Kh1 {[%clk 00:39:32]} {[%emt
00:09:42]} Kh8 {[%clk 00:35:27]} {[%emt 00:03:27]} 16. Rg1 {[%clk 00:36:23]}
{[%emt 00:03:39]} gxf4 {[%clk 00:24:44]} {[%emt 00:11:13]} 17. Nxf4 {[%clk
00:36:47]} {[%emt 00:00:06]} Qh4 {[%clk 00:24:37]} {[%emt 00:00:37]} 18. Rc2
{[%clk 00:04:14]} {[%emt 00:33:03]} Bf6 {[%clk 00:19:32]} {[%emt 00:05:35]} 19.
Qh5 {[%clk 00:03:45]} {[%emt 00:01:00]} Qxh5 {[%clk 00:19:18]} {[%emt
00:00:43]} 20. Nxh5 {[%clk 00:04:11]} {[%emt 00:00:04]} Be7 {[%clk 00:19:09]}
{[%emt 00:00:38]} 21. a3 {[%clk 00:00:36]} {[%emt 00:04:06]} Rac8 {[%clk
00:18:30]} {[%emt 00:01:09]} 22. Rgc1 {[%clk 00:00:37]} {[%emt 00:00:28]} Na5
{[%clk 00:15:50]} {[%emt 00:03:11]} 23. Bf1 {[%clk 00:00:34]} {[%emt 00:00:33]}
Nb3 {[%clk 00:15:28]} {[%emt 00:00:52]} 24. Rd1 {[%clk 00:00:46]} {[%emt
00:00:19]} a6 {[%clk 00:14:25]} {[%emt 00:01:32]} 25. Bd3 {[%clk 00:00:36]}
{[%emt 00:00:40]} b5 {[%clk 00:13:55]} {[%emt 00:01:00]} 26. Na2 {[%clk
00:00:34]} {[%emt 00:00:32]} Na5 {[%clk 00:13:26]} {[%emt 00:00:58]} 27. Ng3
{[%clk 00:00:40]} {[%emt 00:00:24]} Rxc2 {[%clk 00:11:43]} {[%emt 00:02:14]} 28.
Bxc2 {[%clk 00:01:08]} {[%emt 00:00:03]} Nc4 {[%clk 00:11:10]} {[%emt
00:01:02]} 29. Rb1 {[%clk 00:01:35]} {[%emt 00:00:04]} Nd2 {[%clk 00:11:15]}
{[%emt 00:00:24]} 30. Rd1 {[%clk 00:01:57]} {[%emt 00:00:08]} Nc4 {[%clk
00:11:33]} {[%emt 00:00:12]} 31. Rb1 {[%clk 00:02:23]} {[%emt 00:00:04]} Nd2
{[%clk 00:11:58]} {[%emt 00:00:05]} 32. Rd1 {[%clk 00:02:46]} {[%emt 00:00:07]}
1/2-1/2

[Event "Masterklassen 2025"]
[Site "Uppsala, Sweden"]
[Date "2025.07.06"]
[Round "9.15"]
[White "Tornberg, Carlos"]
[Black "Sergelenbaatar, Khaschuluu"]
[Result "0-1"]
[TimeControl "90 min for 40 move + 30 min with an increment of 30 sec starting move 1"]
[WhiteFideId "1733478"]
[BlackFideId "4920929"]
[WhiteElo "2233"]
[BlackElo "1996"]

1. e4 {[%clk 01:31:00]} c6 {[%clk 01:26:02]} {[%emt 00:04:44]} 2. d4 {[%clk
01:31:28]} {[%emt 00:00:16]} d5 {[%clk 01:26:28]} {[%emt 00:00:04]} 3. Nc3
{[%clk 01:31:56]} {[%emt 00:00:03]} dxe4 {[%clk 01:26:05]} {[%emt 00:00:52]} 4.
Nxe4 {[%clk 01:32:25]} {[%emt 00:00:02]} Bf5 {[%clk 01:26:09]} {[%emt
00:00:24]} 5. Ng3 {[%clk 01:32:45]} {[%emt 00:00:10]} Bg6 {[%clk 01:26:33]}
{[%emt 00:00:06]} 6. h4 {[%clk 01:33:13]} {[%emt 00:00:03]} h6 {[%clk
01:26:55]} {[%emt 00:00:08]} 7. Nf3 {[%clk 01:33:41]} {[%emt 00:00:02]} Nd7
{[%clk 01:27:18]} {[%emt 00:00:07]} 8. h5 {[%clk 01:34:08]} {[%emt 00:00:03]}
Bh7 {[%clk 01:27:41]} {[%emt 00:00:07]} 9. Bd3 {[%clk 01:34:37]} {[%emt
00:00:02]} Bxd3 {[%clk 01:28:02]} {[%emt 00:00:09]} 10. Qxd3 {[%clk 01:35:05]}
{[%emt 00:00:01]} e6 {[%clk 01:28:22]} {[%emt 00:00:10]} 11. Bd2 {[%clk
01:35:29]} {[%emt 00:00:06]} Ngf6 {[%clk 01:28:46]} {[%emt 00:00:05]} 12. O-O-O
{[%clk 01:35:51]} {[%emt 00:00:09]} Be7 {[%clk 01:29:08]} {[%emt 00:00:07]} 13.
Ne4 {[%clk 01:36:10]} {[%emt 00:00:12]} Qb6 {[%clk 01:29:17]} {[%emt 00:00:21]}
14. Kb1 {[%clk 01:30:19]} {[%emt 00:06:22]} Rd8 {[%clk 01:29:35]} {[%emt
00:00:11]} 15. Qe2 {[%clk 01:24:31]} {[%emt 00:06:18]} Nxe4 {[%clk 01:20:50]}
{[%emt 00:09:14]} 16. Qxe4 {[%clk 01:24:59]} {[%emt 00:00:02]} Nf6 {[%clk
01:20:59]} {[%emt 00:00:21]} 17. Qe2 {[%clk 01:24:21]} {[%emt 00:01:08]} c5
{[%clk 01:20:30]} {[%emt 00:00:59]} 18. Bc3 {[%clk 01:13:27]} {[%emt 00:11:24]}
Nd5 {[%clk 01:18:47]} {[%emt 00:02:13]} 19. Be1 {[%clk 01:07:37]} {[%emt
00:06:21]} cxd4 {[%clk 01:14:40]} {[%emt 00:04:37]} 20. Nxd4 {[%clk 01:03:40]}
{[%emt 00:04:27]} O-O {[%clk 01:00:47]} {[%emt 00:14:22]} 21. Qb5 {[%clk
00:52:33]} {[%emt 00:11:38]} Qc7 {[%clk 00:51:02]} {[%emt 00:10:15]} 22. Ba5
{[%clk 00:41:11]} {[%emt 00:11:51]} b6 {[%clk 00:51:00]} {[%emt 00:00:32]} 23.
Bd2 {[%clk 00:38:45]} {[%emt 00:02:57]} Bf6 {[%clk 00:42:22]} {[%emt 00:09:07]}
24. Nf3 {[%clk 00:35:35]} {[%emt 00:03:41]} Rc8 {[%clk 00:37:30]} {[%emt
00:05:22]} 25. Qb3 {[%clk 00:31:09]} {[%emt 00:04:55]} b5 {[%clk 00:27:47]}
{[%emt 00:10:14]} 26. g4 {[%clk 00:27:36]} {[%emt 00:04:02]} a5 {[%clk
00:27:40]} {[%emt 00:00:37]} 27. g5 {[%clk 00:22:41]} {[%emt 00:05:25]} a4
{[%clk 00:27:01]} {[%emt 00:01:10]} 28. Qd3 {[%clk 00:22:25]} {[%emt 00:00:46]}
hxg5 {[%clk 00:27:01]} {[%emt 00:00:31]} 29. h6 {[%clk 00:20:05]} {[%emt
00:02:49]} Rfd8 {[%clk 00:19:12]} {[%emt 00:08:19]} 30. Qe4 {[%clk 00:18:06]}
{[%emt 00:02:29]} a3 {[%clk 00:11:35]} {[%emt 00:08:08]} 31. hxg7 {[%clk
00:13:47]} {[%emt 00:04:48]} Bxg7 {[%clk 00:11:59]} {[%emt 00:00:06]} 32. Qh7+
{[%clk 00:06:53]} {[%emt 00:07:23]} Kf8 {[%clk 00:12:23]} {[%emt 00:00:06]} 33.
Bxg5 {[%clk 00:02:17]} {[%emt 00:05:06]} Nc3+ {[%clk 00:11:36]} {[%emt
00:01:18]} 34. bxc3 {[%clk 00:02:01]} {[%emt 00:00:46]} Qxc3 {[%clk 00:11:59]}
{[%emt 00:00:07]} 35. Qxg7+ {[%clk 00:01:58]} {[%emt 00:00:33]} Kxg7 {[%clk
00:11:46]} {[%emt 00:00:43]} 0-1

[Event "Masterklassen 2025"]
[Site "Uppsala, Sweden"]
[Date "2025.07.06"]
[Round "9.16"]
[White "Stanley, Mikael"]
[Black "Darnell, Anton"]
[Result "0-1"]
[TimeControl "90 min for 40 move + 30 min with an increment of 30 sec starting move 1"]
[WhiteFideId "1703730"]
[BlackFideId "1720244"]
[WhiteElo "2150"]
[BlackElo "2007"]

1. Nf3 {[%clk 01:30:35]} {[%emt 00:00:24]} Nf6 {[%clk 01:30:23]} {[%emt
00:00:37]} 2. c4 {[%clk 01:30:40]} {[%emt 00:00:24]} e6 {[%clk 01:30:31]}
{[%emt 00:00:23]} 3. g3 {[%clk 01:30:42]} {[%emt 00:00:28]} d5 {[%clk
01:30:52]} {[%emt 00:00:08]} 4. Bg2 {[%clk 01:29:00]} {[%emt 00:02:13]} Nbd7
{[%clk 01:30:46]} {[%emt 00:00:36]} 5. O-O {[%clk 01:26:48]} {[%emt 00:02:43]}
c6 {[%clk 01:30:44]} {[%emt 00:00:32]} 6. Qc2 {[%clk 01:19:00]} {[%emt
00:08:17]} e5 {[%clk 01:24:24]} {[%emt 00:06:49]} 7. cxd5 {[%clk 01:14:07]}
{[%emt 00:05:24]} cxd5 {[%clk 01:20:46]} {[%emt 00:04:09]} 8. Nc3 {[%clk
01:13:21]} {[%emt 00:01:16]} Bd6 {[%clk 01:13:34]} {[%emt 00:07:41]} 9. d4
{[%clk 01:01:19]} {[%emt 00:12:32]} e4 {[%clk 01:12:35]} {[%emt 00:01:29]} 10.
Ng5 {[%clk 01:00:31]} {[%emt 00:01:18]} O-O {[%clk 01:05:04]} {[%emt 00:08:01]}
11. f3 {[%clk 00:49:49]} {[%emt 00:11:13]} h6 {[%clk 00:54:45]} {[%emt
00:10:48]} 12. fxe4 {[%clk 00:40:34]} {[%emt 00:09:45]} hxg5 {[%clk 00:55:13]}
{[%emt 00:00:02]} 13. e5 {[%clk 00:40:54]} {[%emt 00:00:11]} Nxe5 {[%clk
00:55:36]} {[%emt 00:00:06]} 14. dxe5 {[%clk 00:41:20]} {[%emt 00:00:05]} Bxe5
{[%clk 00:55:46]} {[%emt 00:00:20]} 15. Bxg5 {[%clk 00:41:02]} {[%emt
00:00:47]} Be6 {[%clk 00:55:16]} {[%emt 00:01:00]} 16. Kh1 {[%clk 00:24:17]}
{[%emt 00:17:16]} Qc7 {[%clk 00:40:56]} {[%emt 00:14:49]} 17. e3 {[%clk
00:16:19]} {[%emt 00:08:29]} Rac8 {[%clk 00:32:29]} {[%emt 00:08:57]} 18. Rac1
{[%clk 00:16:27]} {[%emt 00:00:22]} Qb6 {[%clk 00:27:19]} {[%emt 00:05:40]} 19.
Qd2 {[%clk 00:14:14]} {[%emt 00:02:43]} Bxc3 {[%clk 00:19:19]} {[%emt
00:08:29]} 20. Rxc3 {[%clk 00:12:54]} {[%emt 00:01:50]} Rxc3 {[%clk 00:19:33]}
{[%emt 00:00:16]} 21. Bxf6 {[%clk 00:12:29]} {[%emt 00:00:56]} Rxe3 {[%clk
00:15:55]} {[%emt 00:04:07]} 22. Bd4 {[%clk 00:11:48]} {[%emt 00:01:12]} Re2
{[%clk 00:16:23]} {[%emt 00:00:01]} 23. Qf4 {[%clk 00:05:13]} {[%emt 00:07:05]}
Qb4 {[%clk 00:14:14]} {[%emt 00:02:40]} 24. Bf3 {[%clk 00:04:25]} {[%emt
00:01:18]} Rd2 {[%clk 00:13:16]} {[%emt 00:01:27]} 25. Bc3 {[%clk 00:03:55]}
{[%emt 00:01:00]} Qxf4 {[%clk 00:13:09]} {[%emt 00:00:37]} 26. gxf4 {[%clk
00:04:24]} {[%emt 00:00:01]} Rd3 {[%clk 00:12:22]} {[%emt 00:01:17]} 27. Bg2
{[%clk 00:00:59]} {[%emt 00:03:56]} Bh3 {[%clk 00:11:19]} {[%emt 00:01:32]} 28.
Bxh3 {[%clk 00:01:03]} {[%emt 00:00:26]} Rxh3 {[%clk 00:11:41]} {[%emt
00:00:08]} 0-1